bitfinex-derivatives/quotes_ETHF0:USTF0_20240910
["timestamp","ask_amount","ask_price","bid_price","bid_amount"]
[1726000500395,1.04737,2386.8,2386.4,0.8151]
[1726000500585,0.41899,2386.6,2386.4,1.23411]
[1726000500788,0.41898,2386.7,2386.4,1.23411]
[1726000500991,4.888,2387.1,2386.4,4.0751]
[1726000501192,1.04715,2387.3,2386.6,3.26]
[1726000501485,5.276,2387.4,2386.8,0.41895]
[1726000501692,0.41888,2387.2,2386.9,1.23403]
[1726000501999,1.174,2387.4,2386.9,0.8151]
[1726000502185,0.41888,2387.2,2386.9,1.23402]
[1726000502380,0.4189,2387.1,2386.9,1.23402]
[1726000502581,1.04717,2387.3,2386.9,0.8151]
[1726000502793,1.174,2387.4,2386.9,0.8151]
[1726000502986,0.41888,2387.2,2386.9,0.8151]
[1726000503181,0.41888,2387.2,2386.9,1.23402]
[1726000503487,0.41889,2387.1,2386.9,1.23402]
[1726000503689,4.102,2387.7,2387.1,0.41888]
[1726000503992,4.102,2387.7,2387.0,3.26]
[1726000503993,1.04698,2387.7,2387.2,0.41887]
[1726000504195,1.04698,2387.7,2387.1,0.41888]
[1726000504393,0.41885,2387.4,2387.3,40.8]
[1726000504796,0.41885,2387.4,2387.3,41.1781]
[1726000505790,4.4678,2387.9,2387.3,41.1781]
[1726000505988,0.4188,2387.7,2387.4,0.80973]
[1726000506394,5.51471,2387.9,2387.4,0.3909]
[1726000506395,1.2078,2387.9,2387.4,0.3909]
[1726000506595,0.41879,2387.8,2387.5,0.41882]
[1726000506787,1.2078,2387.9,2387.5,0.41882]
[1726000506788,0.41879,2387.7,2387.5,0.41882]
[1726000507094,1.04693,2387.8,2387.4,0.3909]
[1726000507295,0.41882,2387.6,2387.4,0.3909]
[1726000507490,0.41882,2387.5,2387.4,0.3909]
[1726000508495,0.4109,2387.9,2387.4,0.3909]
[1726000508799,0.3807,2388.1,2387.7,0.41878]
[1726000508992,0.41875,2387.9,2387.8,0.3908]
[1726000510096,0.3807,2388.1,2387.4,4.06974]
[1726000510292,0.41879,2387.7,2387.5,0.3908]
[1726000512987,0.3807,2388.1,2387.5,0.3908]
[1726000513192,0.4068,2388.2,2387.8,0.41876]
[1726000513193,0.41875,2388.0,2387.8,0.41876]
[1726000513499,0.41881,2387.6,2387.4,0.51583]
[1726000513796,0.41881,2387.6,2387.5,0.8001]
[1726000514504,0.41884,2387.4,2387.3,40.8]
[1726000514805,1.04712,2387.4,2387.0,0.8002]
[1726000514989,0.41889,2387.1,2387.0,0.8002]
[1726000515297,0.41889,2387.1,2387.0,41.6002]
[1726000515601,0.83339,2387.2,2387.0,41.6002]
[1726000515795,0.41889,2387.1,2387.0,41.6002]
[1726000515995,0.83339,2387.2,2387.0,41.6002]
[1726000516198,0.41888,2387.2,2387.0,41.6002]
[1726000516395,0.8287,2387.5,2387.0,41.6002]
[1726000516598,0.41886,2387.4,2387.0,41.6002]
[1726000517200,0.41886,2387.3,2387.0,41.6002]
[1726000517601,0.41885,2387.4,2387.0,41.6002]
[1726000518103,0.41884,2387.4,2387.0,41.6002]
[1726000518305,1.24753,2387.5,2387.0,41.6002]
[1726000518697,1.24753,2387.5,2387.0,42.0191]
[1726000519001,0.83303,2387.5,2387.1,0.41889]
[1726000519206,0.41884,2387.4,2387.0,42.0191]
[1726000519995,0.41886,2387.3,2387.0,42.0191]
[1726000520194,0.41885,2387.4,2387.0,42.0191]
[1726000520805,0.41886,2387.3,2387.0,42.0191]
[1726000521901,0.4142,2387.5,2387.0,42.0191]
[1726000521902,0.41888,2387.2,2387.0,42.0191]
[1726000522501,1.46128,2387.5,2387.0,42.0191]
[1726000522502,0.4142,2387.5,2387.1,0.41888]
[1726000522698,0.41888,2387.2,2387.0,44.8602]
[1726000522895,0.41887,2387.3,2387.0,45.2791]
[1726000523096,0.41887,2387.3,2387.1,0.41889]
[1726000523901,0.41885,2387.4,2387.2,0.41887]
[1726000525206,0.41885,2387.4,2387.0,45.94604429]
[1726000525508,0.41885,2387.4,2387.2,0.41887]
[1726000526306,0.41885,2387.4,2387.3,0.57166983]
[1726000526600,0.41885,2387.4,2387.2,0.41887]
[1726000527012,0.41885,2387.4,2387.3,0.990538]
[1726000527514,0.41882,2387.5,2387.4,0.41883]
[1726000527711,0.41882,2387.5,2387.4,1.367708]
[1726000528411,0.41882,2387.5,2387.4,0.948878]
[1726000528604,0.41882,2387.5,2387.4,1.367718]
[1726000529207,0.41882,2387.5,2387.4,0.948878]
[1726000530507,0.41882,2387.5,2387.4,1.367718]
[1726000530708,0.41882,2387.5,2387.4,0.948878]
[1726000531113,0.41882,2387.6,2387.4,1.367708]
[1726000531307,0.8011,2387.7,2387.5,0.990498]
[1726000531614,0.41882,2387.6,2387.4,0.79603]
[1726000531805,0.41882,2387.6,2387.5,0.97602677]
[1726000533414,0.41882,2387.6,2387.5,0.9758281]
[1726000534515,0.41882,2387.6,2387.5,1.3946481]
[1726000535308,0.41882,2387.6,2387.5,0.9758281]
[1726000536512,0.41882,2387.6,2387.5,0.4047]
[1726000536714,0.41882,2387.6,2387.5,0.97573941]
[1726000538310,0.41882,2387.6,2387.5,0.57103941]
[1726000540018,0.41882,2387.6,2387.5,0.57088707]
[1726000543219,0.41882,2387.5,2387.4,0.3772]
[1726000543420,0.41882,2387.5,2387.4,0.94807372]
[1726000543616,0.82182,2387.6,2387.4,1.36691372]
[1726000543818,0.82182,2387.6,2387.5,0.57087372]
[1726000544509,0.82182,2387.6,2387.4,0.3772]
[1726000545015,0.41882,2387.5,2387.4,0.3772]
[1726000545317,0.41882,2387.5,2387.4,0.94808211]
[1726000546920,0.41882,2387.5,2387.4,1.36692211]
[1726000547817,0.41882,2387.5,2387.4,0.94808211]
[1726000548122,0.82182,2387.6,2387.4,1.36692211]
[1726000548315,0.82182,2387.6,2387.5,0.57088211]
[1726000549518,0.41886,2387.3,2387.1,1.08584429]
[1726000549716,1.2436,2387.2,2387.1,0.41888]
[1726000549918,1.66247,2387.2,2387.1,0.41888]
[1726000550115,2.19560749,2387.4,2387.1,0.57104322]
[1726000550317,3.78406566,2387.6,2387.4,0.41884]
[1726000550318,2.60300749,2387.5,2387.4,0.41884]
[1726000550527,3.02182749,2387.5,2387.4,0.41884]
[1726000550822,0.82622,2387.5,2387.4,0.57099168]
[1726000553209,0.41882,2387.5,2387.4,0.98983168]
[1726000555822,0.41882,2387.6,2387.5,0.41881]
[1726000556020,0.41882,2387.6,2387.5,0.98980168]
[1726000556225,0.808,2387.7,2387.5,4.75899168]
[1726000556432,2.19560749,2387.9,2387.7,0.41879]
[1726000556616,0.41877,2387.8,2387.7,0.41879]
[1726000556822,0.41876,2387.9,2387.8,0.41877]
[1726000557125,0.41876,2387.9,2387.8,0.98908083]
[1726000557429,0.41876,2387.9,2387.8,0.57031083]
[1726000557633,0.41877,2387.8,2387.7,1.50462429]
[1726000557923,0.41877,2387.8,2387.7,2.98742799]
[1726000558130,1.42615,2388.0,2387.7,1.65615725]
[1726000558333,0.41876,2387.9,2387.8,0.98908296]
[1726000559123,0.79805,2388.0,2387.9,0.41875]
[1726000559329,2.19560749,2388.2,2388.0,1.04684]
[1726000559520,2.61425749,2388.5,2388.3,0.41868]
[1726000559723,0.41865,2388.5,2388.3,3.67868]
[1726000559930,0.41865,2388.5,2388.4,40.8]
[1726000560728,0.81865,2388.5,2388.4,41.37008644]
[1726000561225,0.81865,2388.5,2388.4,40.8]
[1726000562331,0.81865,2388.5,2388.4,41.1904]
[1726000563134,0.41862,2388.7,2388.4,45.3776]
[1726000563433,0.41862,2388.7,2388.5,0.41864]
[1726000563629,0.41862,2388.7,2388.4,41.1904]
[1726000563836,0.82031,2388.8,2388.5,0.41864]
[1726000564035,0.3851,2388.9,2388.6,3.26]
[1726000564331,0.41859,2388.8,2388.6,3.67862]
[1726000564533,1.44812,2389.0,2388.6,3.26]
[1726000564734,0.4186,2388.8,2388.6,3.67862]
[1726000564934,1.04646,2388.9,2388.4,42.27624429]
[1726000565139,0.41861,2388.7,2388.4,44.4504]
[1726000565823,2.19560749,2389.2,2388.9,0.41857]
[1726000565824,1.04634,2389.2,2388.9,0.41857]
[1726000566028,0.41856,2389.1,2389.0,0.3836]
[1726000566232,0.41856,2389.1,2388.6,1.08584429]
[1726000566233,1.04636,2389.1,2388.6,3.26]
[1726000566433,1.46527,2388.5,2388.4,41.2078]
[1726000566834,0.41865,2388.5,2388.4,41.2078]
[1726000567130,1.04635,2389.2,2388.4,54.655]
[1726000567323,0.41858,2388.9,2388.7,3.26]
[1726000567525,0.386,2389.2,2388.8,0.4078]
[1726000567722,0.386,2389.2,2389.0,3.26]
[1726000567931,0.41854,2389.1,2389.0,3.26]
[1726000568133,1.04629,2389.3,2389.0,3.26]
[1726000568134,0.41852,2389.3,2389.0,7.4456]
[1726000568443,6.29760749,2390.0,2389.7,0.41843]
[1726000568444,4.5204,2390.0,2389.7,0.41843]
[1726000568625,0.41842,2389.9,2389.6,0.41844]
[1726000568930,0.7932,2390.2,2389.7,41.62623]
[1726000569132,0.4184,2390.0,2389.7,41.62623]
[1726000569329,0.41841,2389.9,2389.7,44.4678]
[1726000569528,0.41842,2389.8,2389.7,44.4678]
[1726000569729,0.41841,2389.9,2389.7,44.4678]
[1726000569931,0.41838,2390.1,2389.8,0.41842]
[1726000570136,0.41836,2390.2,2389.9,3.67839]
[1726000570536,1.04575,2390.5,2389.9,3.26]
[1726000570837,0.41837,2390.1,2389.9,3.26]
[1726000571447,0.41838,2390.0,2389.9,3.26]
[1726000572046,0.41838,2390.1,2389.9,7.444]
[1726000572236,0.41838,2390.1,2389.9,3.26]
[1726000573530,0.41838,2390.1,2389.9,3.677]
[1726000573932,0.41836,2390.2,2390.0,4.184]
[1726000574130,0.41837,2390.1,2389.9,3.677]
[1726000574541,0.41837,2390.1,2390.0,4.184]
[1726000582138,0.4011,2390.4,2390.0,4.184]
[1726000582337,4.52025,2390.8,2390.4,0.41831]
[1726000582538,4.52025,2390.8,2390.3,4.30582]
[1726000582539,0.41825,2390.8,2390.7,3.26]
[1726000582737,0.41825,2390.8,2390.7,44.06]
[1726000583835,0.41825,2390.8,2390.7,48.2424]
[1726000584037,0.3995,2390.9,2390.7,48.2424]
[1726000584038,0.81774,2390.9,2390.7,48.66065]
[1726000584238,0.81774,2390.9,2390.8,0.41824]
[1726000584441,0.3888,2391.1,2390.7,48.2424]
[1726000584743,0.41819,2391.1,2390.9,3.26]
[1726000584948,0.3809,2391.3,2391.0,0.7881]
[1726000584949,0.41819,2391.2,2391.0,0.7881]
[1726000585137,0.41819,2391.2,2391.1,3.26]
[1726000585536,0.79906,2391.3,2391.1,3.67819]
[1726000586257,0.41817,2391.2,2391.1,3.26]
[1726000588244,0.3809,2391.3,2391.0,3.26]
[1726000588245,0.41821,2391.1,2391.0,3.26]
[1726000588436,0.3809,2391.3,2391.0,3.26]
[1726000588437,0.41818,2391.2,2391.0,3.26]
[1726000589139,0.41819,2391.1,2391.0,3.26]
[1726000591946,0.3809,2391.3,2391.0,3.26]
[1726000592151,0.41817,2391.2,2391.0,3.26]
[1726000592347,0.41817,2391.2,2391.0,3.67821]
[1726000592649,0.41819,2391.1,2391.0,3.26]
[1726000592946,6.818,2392.0,2391.8,0.41807]
[1726000593149,0.7651,2392.2,2391.7,3.26]
[1726000593447,0.7651,2392.2,2391.4,3.7369]
[1726000593448,0.41812,2391.5,2391.4,3.7369]
[1726000593641,0.7651,2392.2,2391.2,3.26]
[1726000593642,3.26,2392.0,2391.2,3.26]
[1726000593961,3.26,2392.0,2391.1,0.89839]
[1726000593962,0.41817,2391.3,2391.1,0.89839]
[1726000594249,0.41817,2391.2,2391.1,0.3832]
[1726000594547,0.81797,2391.3,2391.1,41.60139]
[1726000594741,0.81797,2391.3,2391.2,3.26]
[1726000595241,0.81797,2391.3,2391.1,41.60139]
[1726000595242,0.41817,2391.2,2391.1,40.8]
[1726000596750,0.41817,2391.2,2391.1,44.06]
[1726000597950,0.81797,2391.3,2391.1,44.06]
[1726000598142,0.41817,2391.2,2391.1,44.06]
[1726000599751,0.3998,2391.3,2391.1,44.47819]
[1726000599947,0.381,2391.4,2391.2,0.41817]
[1726000600150,0.381,2391.4,2391.3,3.26]
[1726000600653,0.381,2391.4,2391.3,3.67816]
[1726000600849,0.41813,2391.5,2391.3,3.26]
[1726000601048,0.41813,2391.5,2391.3,3.67815]
[1726000601464,0.41813,2391.5,2391.4,0.4003]
[1726000602747,0.4014,2391.7,2391.4,0.4003]
[1726000602953,0.41811,2391.6,2391.5,0.41812]
[1726000603646,0.41811,2391.6,2391.4,0.81843]
[1726000604244,0.41808,2391.8,2391.7,0.41808]
[1726000604454,1.46326,2391.8,2391.7,3.26]
[1726000604759,0.4181,2391.6,2391.5,3.26]
[1726000605149,1.43483,2391.7,2391.4,0.4003]
[1726000605150,0.41812,2391.5,2391.4,0.4003]
[1726000605854,0.41814,2391.5,2391.3,3.67816]
[1726000606049,0.41815,2391.4,2391.2,0.80087]
[1726000606849,0.41815,2391.4,2391.3,3.26]
[1726000608048,0.41815,2391.4,2391.3,3.67816]
[1726000608247,0.41815,2391.4,2391.3,3.26]
[1726000609452,0.41815,2391.4,2391.3,3.67816]
[1726000609752,0.41813,2391.5,2391.3,3.67814]
[1726000610747,2.20656,2391.7,2391.4,0.41813]
[1726000610748,0.41812,2391.6,2391.4,0.41813]
[1726000611349,0.4181,2391.6,2391.4,0.41813]
[1726000611552,0.41812,2391.6,2391.3,3.26]
[1726000611753,0.41812,2391.6,2391.4,0.41813]
[1726000611946,0.41811,2391.6,2391.5,3.67812]
[1726000612148,1.5794,2391.7,2391.5,3.67811]
[1726000612558,1.5794,2391.7,2391.6,0.399]
[1726000613057,1.5794,2391.7,2391.6,0.7914]
[1726000614753,0.8077,2391.7,2391.6,1.2095]
[1726000615055,4.102,2391.9,2391.8,0.41807]
[1726000615259,0.41805,2391.9,2391.8,3.67806]
[1726000615460,0.41805,2392.0,2391.9,0.41805]
[1726000615661,0.41805,2391.9,2391.8,3.67806]
[1726000616057,0.41805,2391.9,2391.8,3.26]
[1726000616756,0.3844,2392.1,2391.9,0.41804]
[1726000617059,0.80242,2392.1,2392.0,0.3772]
[1726000617558,1.84747,2392.1,2392.0,0.3772]
[1726000617755,1.84747,2392.1,2391.8,3.26]
[1726000617756,0.41805,2391.9,2391.8,3.26]
[1726000617959,1.42945,2392.1,2391.8,3.67806]
[1726000618161,0.41805,2391.9,2391.8,3.67806]
[1726000619858,0.41805,2392.0,2391.8,3.67806]
[1726000620062,0.41805,2391.9,2391.8,3.67806]
[1726000620450,0.41805,2391.9,2391.8,3.26]
[1726000622759,0.41805,2391.9,2391.7,3.26]
[1726000622760,4.1808,2391.9,2391.7,3.26]
[1726000622961,0.41814,2391.4,2391.3,3.9902]
[1726000623154,0.41814,2391.4,2391.3,3.26]
[1726000623461,1.1479,2391.5,2391.4,0.41814]
[1726000623670,0.41812,2391.5,2391.4,3.67814]
[1726000623970,0.41812,2391.6,2391.4,3.67812]
[1726000624262,0.41812,2391.5,2391.4,3.67812]
[1726000625258,0.41812,2391.5,2391.4,3.26]
[1726000625764,0.41812,2391.5,2391.4,3.67814]
[1726000628965,0.41811,2391.6,2391.5,0.41812]
[1726000629158,0.4181,2391.7,2391.5,0.7642]
[1726000629364,0.4181,2391.6,2391.5,1.18231]
[1726000630266,0.4181,2391.6,2391.5,4.0242]
[1726000631475,0.4181,2391.6,2391.5,4.44232]
[1726000632058,0.4181,2391.6,2391.5,3.26]
[1726000632772,5.64497,2391.6,2391.3,3.26]
[1726000633072,5.64497,2391.6,2391.1,42.42876644]
[1726000633073,1.46361,2391.2,2391.1,40.8]
[1726000633371,0.41817,2391.2,2391.1,40.8]
[1726000634265,0.41823,2390.9,2390.7,4.34584429]
[1726000634462,0.41822,2391.0,2390.7,3.67826]
[1726000634668,0.3902,2391.1,2390.9,3.67822]
[1726000634869,6.48041527,2391.4,2391.0,41.1891]
[1726000635070,1.16675,2391.4,2391.2,3.26]
[1726000635572,0.3902,2391.5,2391.3,0.41816]
[1726000635772,0.41812,2391.6,2391.4,3.26]
[1726000635968,0.41812,2391.6,2391.4,3.6491]
[1726000636576,1.54349,2391.7,2391.4,4.06724]
[1726000636777,0.7528,2391.7,2391.4,4.06724]
[1726000636969,0.41811,2391.6,2391.4,3.6491]
[1726000637372,0.41812,2391.5,2391.4,3.6491]
[1726000637679,0.41811,2391.6,2391.4,4.21836398]
[1726000637870,0.41811,2391.6,2391.4,3.6491]
[1726000638066,0.41812,2391.5,2391.4,3.6491]
[1726000638272,0.41812,2391.5,2391.4,4.21832399]
[1726000638575,0.41812,2391.6,2391.4,4.21832399]
[1726000638877,0.41812,2391.5,2391.4,3.6491]
[1726000639095,0.41812,2391.5,2391.4,4.21825221]
[1726000639282,0.41812,2391.5,2391.4,4.21825863]
[1726000640585,0.41812,2391.5,2391.4,3.82915863]
[1726000643285,0.41812,2391.5,2391.4,3.26]
[1726000643785,0.41812,2391.5,2391.4,3.82935023]
[1726000646699,0.41812,2391.5,2391.4,3.26]
[1726000646994,0.41812,2391.5,2391.4,3.82937687]
[1726000647191,0.41812,2391.5,2391.4,3.26]
[1726000647591,0.41812,2391.5,2391.4,3.82936109]
[1726000649993,1.46343,2391.5,2391.4,3.82936109]
[1726000650194,1.83723,2391.5,2391.4,3.82936109]
[1726000650392,1.83723,2391.5,2391.4,0.56936109]
[1726000654596,0.41816,2391.3,2391.2,4.73134429]
[1726000654792,0.41816,2391.3,2391.2,6.21200743]
[1726000655195,0.41816,2391.3,2391.2,6.63017743]
[1726000655606,0.41816,2391.3,2391.2,6.21200743]
[1726000655607,1.46356,2391.3,2391.2,6.21200743]
[1726000655901,1.46356,2391.3,2391.2,3.82948582]
[1726000656089,1.46356,2391.3,2391.2,4.23128582]
[1726000656090,0.41816,2391.3,2391.2,4.23128582]
[1726000656802,0.41816,2391.3,2391.2,5.14271948]
[1726000656997,0.41816,2391.3,2391.2,3.6618]
[1726000657393,0.41816,2391.3,2391.2,4.23142529]
[1726000658697,0.41816,2391.3,2391.2,5.1429281]
[1726000659005,0.41816,2391.3,2391.2,4.23142529]
[1726000659191,2.00361527,2391.5,2391.2,4.23142529]
[1726000659393,0.41814,2391.4,2391.3,0.98777529]
[1726000659598,0.41814,2391.4,2391.3,0.9877921]
[1726000659801,0.41814,2391.4,2391.3,1.89920871]
[1726000660296,0.41814,2391.4,2391.3,2.07363639]
[1726000660495,0.41814,2391.4,2391.3,0.98775217]
[1726000660702,0.41814,2391.4,2391.3,1.89911564]
[1726000660907,0.41814,2391.4,2391.3,1.48096564]
[1726000661404,0.41814,2391.4,2391.3,1.89912564]
[1726000662106,0.41814,2391.4,2391.3,2.98496993]
[1726000662302,0.41814,2391.4,2391.3,2.56680993]
[1726000662510,0.41814,2391.4,2391.3,2.98496993]
[1726000663311,0.41814,2391.4,2391.3,2.56680993]
[1726000663614,1.4635,2391.4,2391.3,0.56960217]
[1726000664111,0.41819,2391.1,2391.0,45.51934429]
[1726000664408,0.41819,2391.1,2391.0,45.54041231]
[1726000664599,0.41819,2391.1,2391.0,45.93801231]
[1726000665408,0.41819,2391.1,2391.0,47.0238566]
[1726000667106,5.64608,2391.1,2391.0,41.36938935]
[1726000667312,5.64608,2391.1,2391.0,40.8]
[1726000667313,7.28982663,2391.1,2391.0,40.8]
[1726000667506,7.28982663,2391.1,2391.0,41.36949666]
[1726000668499,0.41819,2391.1,2391.0,44.62949666]
[1726000669405,3.10742663,2391.1,2391.0,44.62949666]
[1726000670205,1.46368,2391.1,2391.0,44.62949666]
[1726000670517,3.10742663,2391.1,2391.0,44.62949666]
[1726000671213,1.46368,2391.1,2391.0,44.62949666]
[1726000671615,1.46368,2391.1,2391.0,41.36949666]
[1726000671813,3.10742663,2391.1,2391.0,40.8]
[1726000672611,7.28982663,2391.1,2391.0,40.8]
[1726000673016,1.46368,2391.1,2391.0,40.8]
[1726000673213,0.41819,2391.1,2391.0,44.6294932]
[1726000673717,0.41819,2391.1,2391.0,44.06]
[1726000674013,0.41819,2391.1,2391.0,45.19891489]
[1726000675611,1.46368,2391.1,2391.0,45.19891489]
[1726000676713,1.46368,2391.1,2391.0,44.62945793]
[1726000677417,1.46368,2391.1,2391.0,44.06]
[1726000677619,1.46368,2391.1,2391.0,44.62965417]
[1726000679227,1.46368,2391.1,2391.0,44.06]
[1726000682323,1.46368,2391.1,2391.0,42.31]
[1726000684816,0.41819,2391.1,2391.0,42.31]
[1726000685025,1.64374663,2391.3,2391.0,42.87974829]
[1726000685324,0.41814,2391.5,2391.2,1.92817]
[1726000685531,1.64374663,2391.6,2391.4,1.51]
[1726000685828,1.64374663,2391.7,2391.6,0.4181]
[1726000686122,1.04508,2392.1,2391.6,3.91005015]
[1726000686123,1.64374663,2392.1,2391.6,3.91005015]
[1726000686321,0.41802,2392.1,2392.0,1.51]
[1726000686527,0.41802,2392.1,2392.0,42.31]
[1726000686722,1.46307,2392.1,2392.0,42.31]
[1726000686922,0.41802,2392.1,2392.0,42.31]
[1726000688230,0.41802,2392.1,2392.0,40.8]
[1726000703432,1.46307,2392.1,2392.0,40.8]
[1726000704236,0.41801,2392.2,2392.0,44.06]
[1726000704433,0.418,2392.2,2392.0,44.06]
[1726000704629,0.418,2392.2,2392.1,0.3696]
[1726000705034,1.46307,2392.1,2392.0,40.8]
[1726000705939,5.64387,2392.1,2392.0,40.8]
[1726000709938,6.68892,2392.1,2392.0,40.8]
[1726000710139,1.46337,2391.6,2391.3,0.113]
[1726000710432,1.46337,2391.6,2391.2,1.51]
[1726000710433,1.0452,2391.8,2391.4,1.51]
[1726000710639,0.41809,2391.7,2391.5,42.31]
[1726000710838,0.41809,2391.7,2391.6,0.7517]
[1726000712837,5.74574663,2392.2,2391.6,10.9333]
[1726000713029,0.418,2392.2,2392.1,1.51]
[1726000713434,1.04498,2392.3,2392.0,1.51]
[1726000713638,0.41802,2392.1,2392.0,1.51]
[1726000714143,4.1808,2392.1,2391.6,0.8487]
[1726000714439,0.41808,2391.8,2391.6,0.7517]
[1726000715434,0.41809,2391.7,2391.6,0.7517]
[1726000715639,0.41808,2391.8,2391.6,0.7517]
[1726000717142,0.41803,2392.1,2391.7,4.1808]
[1726000717344,0.41803,2392.1,2391.9,3.26]
[1726000717648,0.41803,2392.1,2392.0,0.3932]
[1726000717837,1.04504,2392.2,2391.7,3.648]
[1726000718039,1.04504,2392.2,2391.8,0.3932]
[1726000718040,0.41804,2392.0,2391.8,0.3932]
[1726000719943,0.41805,2391.9,2391.8,0.3932]
[1726000720146,1.04505,2392.1,2391.8,0.3932]
[1726000720543,0.41804,2392.0,2391.8,0.3932]
[1726000721043,0.41801,2392.2,2391.9,3.67805]
[1726000721251,0.41801,2392.2,2391.9,3.644]
[1726000721548,0.41803,2392.1,2391.9,3.644]
[1726000721748,1.04497,2392.3,2391.9,3.26]
[1726000721947,0.41802,2392.1,2391.9,3.26]
[1726000722449,0.41803,2392.0,2391.9,3.26]
[1726000722747,0.41803,2392.1,2391.9,3.26]
[1726000723142,2.68871663,2392.3,2391.9,3.26]
[1726000723143,0.41803,2392.0,2391.9,3.26]
[1726000723348,0.41809,2391.7,2391.6,0.097]
[1726000723648,0.41809,2391.7,2391.5,41.1874]
[1726000724040,1.64374663,2391.9,2391.6,3.26]
[1726000724242,0.41804,2392.0,2391.8,3.26]
[1726000724546,6.48644663,2392.2,2391.9,0.7671]
[1726000724846,0.41803,2392.0,2391.9,0.7671]
[1726000727444,2.06177663,2392.0,2391.9,0.7671]
[1726000727949,0.41803,2392.0,2391.9,0.7671]
[1726000728152,2.06177663,2392.0,2391.9,0.7671]
[1726000729745,3.10686663,2392.0,2391.9,0.7671]
[1726000729945,1.46312,2392.0,2391.9,0.3874]
[1726000730147,3.65872749,2392.0,2391.9,0.3874]
[1726000731052,2.19560749,2392.0,2391.9,0.3874]
[1726000731249,2.61363749,2392.1,2391.9,0.95708326]
[1726000731440,2.61363749,2392.1,2392.0,0.56964637]
[1726000731644,2.61363749,2392.1,2392.0,0.95184637]
[1726000732046,0.41803,2392.1,2392.0,0.95184637]
[1726000732447,2.61363749,2392.1,2392.0,0.95184637]
[1726000733654,0.41803,2392.1,2392.0,0.95184637]
[1726000733859,2.61363749,2392.1,2392.0,0.95184637]
[1726000734244,0.41803,2392.1,2392.0,0.95184637]
[1726000734449,1.041457,2392.4,2392.2,1.04501]
[1726000734646,0.316157,2392.6,2392.5,1.46282]
[1726000734846,4.102,2393.1,2393.0,0.41786]
[1726000735053,3.15480566,2393.4,2393.0,44.62964637]
[1726000735054,0.41781,2393.3,2393.0,44.62964637]
[1726000735255,0.7488,2393.5,2393.2,3.26]
[1726000735552,0.7488,2393.5,2393.4,3.26]
[1726000735553,1.16657,2393.5,2393.4,3.26]
[1726000736149,2.73700566,2393.8,2393.4,13.4384]
[1726000736453,0.097,2394.5,2393.9,0.4177]
[1726000736647,2.80000672,2394.8,2394.3,3.26]
[1726000736648,5.53701238,2394.8,2394.3,3.26]
[1726000736846,4.93100566,2394.8,2394.3,3.26]
[1726000737045,3.88710566,2394.8,2394.3,44.06]
[1726000737356,1.1501,2394.8,2394.3,44.06]
[1726000737548,0.41762,2394.4,2394.3,44.06]
[1726000738153,3.78075566,2395.1,2394.3,44.06]
[1726000738352,0.41754,2394.9,2394.4,0.41761]
[1726000738552,1.0437,2395.2,2394.9,3.26]
[1726000738553,0.41751,2395.0,2394.9,3.26]
[1726000739057,1.0437,2395.2,2394.7,3.26]
[1726000739058,1.25623016,2395.2,2394.7,3.26]
[1726000739257,0.41755,2394.8,2394.7,3.26]
[1726000740548,0.4176,2394.6,2394.5,3.26]
[1726000740754,0.41754,2394.9,2394.5,3.26]
[1726000740956,0.41753,2394.9,2394.8,3.26]
[1726000742546,1.04373,2395.2,2394.5,3.26]
[1726000743061,0.41758,2394.6,2394.5,3.26]
[1726000743556,1.04386,2394.9,2394.3,44.06]
[1726000743757,0.41762,2394.4,2394.3,3.26]
[1726000744262,0.41762,2394.4,2394.3,44.06]
[1726000744651,0.41762,2394.4,2394.3,3.26]
[1726000745252,0.7667,2394.8,2394.3,48.2368]
[1726000745554,1.04378,2395.0,2394.6,3.26]
[1726000745757,0.41756,2394.7,2394.6,3.26]
[1726000746263,1.0438,2395.0,2394.5,3.26]
[1726000746264,0.41758,2394.6,2394.5,3.26]
[1726000748261,1.0438,2395.0,2394.5,3.26]
[1726000748455,1.0437,2395.2,2394.3,40.8]
[1726000748762,0.41751,2395.0,2394.9,3.26]
[1726000749659,1.04369,2395.3,2394.9,7.4352]
[1726000749865,0.41748,2395.2,2395.1,3.26]
[1726000750058,1.46118,2395.2,2395.1,3.26]
[1726000751558,0.41748,2395.2,2395.1,3.26]
[1726000752657,1.46118,2395.2,2395.1,3.26]
[1726000753161,0.41748,2395.2,2395.1,3.26]
[1726000756369,0.41748,2395.2,2394.6,0.51458]
[1726000756370,0.41756,2394.7,2394.6,0.097]
[1726000756572,1.04386,2394.9,2394.5,3.26]
[1726000756871,0.41755,2394.8,2394.7,3.26]
[1726000761662,1.04385,2394.9,2394.5,3.26]
[1726000761663,0.41758,2394.6,2394.5,3.26]
[1726000763375,1.46154,2394.6,2394.5,3.26]
[1726000765472,0.41762,2394.4,2394.3,44.06]
[1726000765680,1.46167,2394.4,2394.3,44.06]
[1726000765878,5.63847,2394.4,2394.3,40.8]
[1726000766471,6.68252,2394.4,2394.3,40.8]
[1726000766674,1.46191,2394.0,2393.9,3.26]
[1726000766878,1.46209,2393.7,2393.6,0.097]
[1726000767082,1.46214,2393.6,2393.5,3.26]
[1726000767273,1.46214,2393.6,2393.5,44.06]
[1726000767976,1.46239,2393.2,2393.1,3.26]
[1726000768484,1.46239,2393.2,2393.1,44.06]